Cogmind - Beta 14 @@@ ROGUE MODE // 2024.10.05 @ 17:48:20 Player: ILikeVoltron Result: Destroyed by D-53 Grenadier with Mini Grenade Launcher Performance ------------- Evolutions (0) 0 Regions Visited (2) 400 Robots Destroyed (22) 110 Value Destroyed (261) 261 Prototype IDs (0) 0 Alien Tech Used (0) 0 Bonus (0) 0 TOTAL SCORE: 771 Bonus ------- None Cogmind --------- Core Integrity 0/250 Matter 285/300 Energy 79/100 System Corruption 2% Temperature Cool (1) Movement Walking (190) Ox1 Location -10/Mines Parts ------- > --- POWER (1) -------- (None) > --- PROPULSION (2) --- Aluminum Leg > --- UTILITY (2) ------ Large Storage Unit Weight Redist. System > --- WEAPON (2) ------- Light Cannon > --- INVENTORY (15) --- Ion Engine Aluminum Leg Large Matter Pod (150) Weight Redist. System Visual Processing Unit Sensor Array Signal Interpreter Improved Terrain Scanner Light Armor Plating Assault Rifle Light Assault Rifle Grenade Launcher Mining Claw Peak State ------------ > --- POWER ------------ Ion Engine > --- PROPULSION ------- Aluminum Leg Aluminum Leg > --- UTILITY ---------- Small Storage Unit Improved Terrain Scanner > --- WEAPON ----------- Particle Cannon Assault Rifle > --- INVENTORY -------- Ion Engine Large Matter Pod Weight Redist. System Weight Redist. System Sensor Array Seismic Detector Grenade Launcher Mining Claw [Rating: 11] Favorites ----------- Power Ion Engine Engine Ion Engine Propulsion Aluminum Leg Leg Aluminum Leg Utility Small Storage Unit Device Improved Terrain Scanner Storage Small Storage Unit Weapon Assault Rifle Energy Gun EM Pulse Gun Energy Cannon Particle Cannon Ballistic Gun Assault Rifle Ballistic Cannon Light Cannon Launcher Grenade Launcher Special Weapon Mining Laser Slashing Weapon Mining Claw Build | -11 -10 -10 ------- Run | Yrd Mat Min Slots Evolved . | . . . Power . | . . . Propulsion . | . . . Utility . | . . . Weapon . | . . . Parts Attached 20 | 2 16 2 Power . | . . . Engine . | . . . Core . | . . . Reactor . | . . . Propulsion 2 | . 1 1 Treads . | . . . Leg 2 | . 1 1 Wheel . | . . . Hover . | . . . Flight . | . . . Utility 9 | 2 6 1 Device 8 | 2 5 1 Storage 1 | . 1 . Processor . | . . . Hackware . | . . . Protection . | . . . Artifact . | . . . Weapon 9 | . 9 . Energy Gun 1 | . 1 . Energy Cannon 2 | . 2 . Ballistic Gun 1 | . 1 . Ballistic Cannon 1 | . 1 . Launcher 1 | . 1 . Special Weapon 1 | . 1 . Impact Weapon . | . . . Slashing Weapon 2 | . 2 . Piercing Weapon . | . . . Special Melee Weapon . | . . . Unidentified Prototypes . | . . . Parts Lost 5 | . . 5 Power 1 | . . 1 Propulsion 2 | . . 2 Utility 1 | . . 1 Weapon 1 | . . 1 Highest Loss Streak 5 | . . 5 To Critical Strikes . | . . . Average Slot Usage (%) 98 | . 99 85 Engine 13 | . 14 8 Leg 27 | . 28 24 Device 14 | . 14 14 Storage 14 | . 14 14 Energy Gun 1 | . 1 . Energy Cannon 8 | . 9 . Ballistic Gun 13 | . 14 10 Ballistic Cannon 1 | . . 14 Slashing Weapon 1 | . 2 . Peak Build Rating 11 | 10 11 9 Average Rating 9 | 9 9 7 On Entrance 8 | 6 10 9 Naked Turns . | . . . Heaviest Build 32 | 15 32 30 Greatest Support 20 | 20 20 20 Greatest Overweight (x) 2 | . 1 2 Average Overweight (x) . | . . 1 Largest Inventory Capacity 15 | 8 15 15 Average Capacity 10 | 8 11 15 Most Carried 15 | 8 15 15 Average Carried 9 | 7 10 14 Final Capacity 15 | 8 15 15 Final Carried 15 | 8 15 13 Class Distribution -------------------- 100% | Mutant Dominant Class ---------------- Mutant | -10/Materials Mutant | -10/Mines Resources | -11 -10 -10 ----------- Run | Yrd Mat Min Matter Collected 770 | 408 362 . Remotely . | . . . Salvage Created 519 | 203 316 . Parts 60 | 28 32 . Haulers Intercepted 1 | . 1 . Recyclers Shooed 1 | . 1 . Parts Field Recycled . | . . . Retrieved Matter . | . . . Parts Self-Destructed . | . . . Prevented . | . . . Kills | -11 -10 -10 ------- Run | Yrd Mat Min Combat Hostiles Destroyed 7 | . 7 . Guns 5 | . 5 . Cannons 2 | . 2 . Classes Destroyed 8 | 3 5 . Worker 3 | 2 1 . Builder 2 | . 2 . Tunneler 6 | 6 . . Hauler 1 | . 1 . Recycler 1 | 1 . . Watcher 2 | . 2 . Swarmer 3 | . 3 . Grunt 4 | . 4 . Best Kill Streak 3 | 3 3 . Combat Bots Only 3 | . 3 . Max Kills in Single Turn 2 | 1 2 . Gunslinging . | . . . Exploded . | . . . Melee . | . . . Uniques/NPCs Destroyed . | . . . Combat | -11 -10 -10 -------- Run | Yrd Mat Min Hostile Shots Fired 59 | . 28 31 Missed 13 | . 5 8 Damage Taken 980 | . 212 768 Core 271 | . 19 252 Absorbed by Shields . | . . . Core Remaining (%) 100 | 100 . . Volleys Fired 55 | 33 22 . Largest 2 | 2 2 . Hottest 100 | 60 100 . Shots Fired 77 | 39 38 . Gun 55 | 39 16 . Cannon 19 | . 19 . Launcher 1 | . 1 . Special 2 | . 2 . Kinetic 49 | 33 16 . Thermal 21 | . 21 . Explosive 1 | . 1 . Electromagnetic 6 | 6 . . Robot Hit Streak 8 | 8 3 . Robot Miss Streak 3 | 2 3 . Penetration Max . | . . . Secondary Targets . | . . . Shots Hit Robots 49 | 29 20 . Core Hits 24 | 10 14 . Critical Kills 1 | . 1 . Critical Parts Destroyed . | . . . Critical Strikes 1 | . 1 . Destroy 1 | . 1 . Melee Attacks 18 | . 18 . Impact . | . . . Slashing 18 | . 18 . Piercing . | . . . Sneak Attacks 1 | . 1 . Combat Hostiles . | . . . Follow-up Attacks . | . . . Damage Inflicted 865 | 388 477 . Guns 472 | 364 108 . Cannons 227 | . 227 . Explosions 122 | 24 98 . Melee 44 | . 44 . Ramming . | . . . Kinetic 404 | 296 108 . Thermal 251 | 24 227 . Explosive 98 | . 98 . Electromagnetic 68 | 68 . . Impact . | . . . Slashing 44 | . 44 . Piercing . | . . . Highest Corruption 2 | . 2 2 Average Corruption 2 | . 2 2 Corruption Purged . | . . . Corruption Blocked . | . . . Effects 2 | . 1 1 Message Errors 1 | . 1 . Data Loss (minor) 1 | . . 1 Overload Shots . | . . . Overflow Damage . | . . . Projectiles . | . . . Explosions . | . . . Melee . | . . . Knockbacks . | . . . Impact . | . . . Kinetic . | . . . Secondary . | . . . Self-Inflicted Damage . | . . . Shots . | . . . Rammed . | . . . Targets Rammed . | . . . Kicked . | . . . Crushed . | . . . Highest Temperature 184 | . 184 . Average Temperature 52 | . 52 . Received Heat Transfer 90 | . 48 42 Siege Activations . | . . . Robots Corrupted . | . . . Combat Hostiles . | . . . Parts Fried . | . . . Impact Corruptions . | . . . Robots Melted . | . . . Combat Hostiles . | . . . Parts Melted . | . . . Heat Transferred 457 | 50 407 . Parts Sabotaged . | . . . Parts Stolen . | . . . Parts Stripped . | . . . Power Chain Reactions 1 | 1 . . Alert | -11 -10 -10 ------- Run | Yrd Mat Min Peak Influence 197 | 45 197 76 Initial 76 | . 29 76 Average 81 | 21 101 42 Maximum Alert Level . | . . . Low Security (%) 100 | 100 100 100 Level 1 . | . . . Level 2 . | . . . Level 3 . | . . . Level 4 . | . . . Level 5 . | . . . High Security . | . . . Max Security . | . . . Squads Dispatched 1 | . 1 . Investigation 1 | . 1 . Extermination . | . . . Reinforcement . | . . . Assault . | . . . Garrison . | . . . Intercept . | . . . Searches Triggered . | . . . Construction Impeded . | . . . Haulers Reinforced . | . . . Active Scanning Responses . | . . . Cargo Convoy Interrupts . | . . . Stealth | -11 -10 -10 --------- Run | Yrd Mat Min Distress Signals 1 | . 1 . Communications Jammed . | . . . Distress Signals . | . . . Times Spotted 16 | . 12 4 Peak Tracking Total 4 | . 4 3 Tactical Retreats 2 | . 2 . Traps | -11 -10 -10 ------- Run | Yrd Mat Min Traps Triggered 2 | . 2 . Indirectly . | . . . Trap Hack Attempts . | . . . Triggered . | . . . Disarmed . | . . . Reprogrammed . | . . . Reused . | . . . Traps Extracted . | . . . Installed . | . . . Triggered . | . . . Machines | -11 -10 -10 ---------- Run | Yrd Mat Min Machines Disabled . | . . . Max in Single Turn . | . . . Machines Repaired . | . . . Machines Dismantled . | . . . Machines Sabotaged . | . . . Overloaded Fab Kills . | . . . Hacking | -11 -10 -10 --------- Run | Yrd Mat Min Machines Accessed 3 | . 3 . Terminals 3 | . 3 . Fabricators . | . . . Repair Stations . | . . . Recycling Units . | . . . Scanalyzers . | . . . Garrison Access . | . . . Total Hacks 9 | . 9 . Successful 5 | . 5 . Failed 4 | . 4 . Catastrophic . | . . . Database Lockouts . | . . . Manual 1 | . 1 . Terminals 9 | . 9 . Fabricators . | . . . Repair Stations . | . . . Recycling Units . | . . . Scanalyzers . | . . . Garrison Access . | . . . Terminal Hacks 4 | . 4 . Level Access Points 1 | . 1 . Branch Access Points 1 | . 1 . Locate Traps 1 | . 1 . Zone Layout 1 | . 1 . Fabricator Hacks . | . . . Repair Station Hacks . | . . . Recycling Unit Hacks . | . . . Scanalyzer . | . . . Garrison Access Hacks . | . . . Unauthorized Hacks 1 | . 1 . Terminals 1 | . 1 . Botnet 1 | . 1 . Fabricators . | . . . Repair Stations . | . . . Recycling Units . | . . . Scanalyzers . | . . . Garrison Access . | . . . Data Cores Recovered . | . . . Used . | . . . Hacking Detections 3 | . 3 . Full Trace Events . | . . . Feedback Events . | . . . Feedback Blocked . | . . . Robot Schematics Acquired . | . . . Robots Built . | . . . Authchips . | . . . Time . | . . . Total Robot Build Rating . | . . . Part Schematics Acquired . | . . . Parts Built . | . . . Authchips . | . . . Time . | . . . Total Part Build Rating . | . . . Parts Repaired . | . . . Time . | . . . Parts Recycled . | . . . Recycled Matter . | . . . Retrieved Matter . | . . . Retrieved Components . | . . . Parts Scanalyzed . | . . . Part Schematics Acquired . | . . . Parts Damaged . | . . . Bothacking | -11 -10 -10 ------------ Run | Yrd Mat Min Used RIF Installer . | . . . Robots Hacked . | . . . Non-combat . | . . . Combat . | . . . Robot Hacks Applied . | . . . Relay Couplers Released . | . . . Fabnet Peak Effective % . | . . . Robots Rewired . | . . . Allies Hacked . | . . . Hacks Repelled . | . . . Allies | -11 -10 -10 -------- Run | Yrd Mat Min Total Allies 3 | . . 3 Largest Group 3 | . . 3 Highest-Rated Group 40 | . . 40 Highest-Rated Ally 16 | . . 16 Total Orders . | . . . Ally Attacks 2 | . . 2 Total Damage 14 | . . 14 Kills . | . . . Allies Corrupted . | . . . Allies Melted . | . . . Intel | -11 -10 -10 ------- Run | Yrd Mat Min Robot Analysis Total . | . . . Derelict Logs Recovered . | . . . Drone Launches . | . . . Drone Recoveries . | . . . Exploration | -11 -10 -10 ------------- Run | Yrd Mat Min Turns Passed 1096 | 232 794 70 Spaces Moved 466 | 93 338 35 Core . | . . . Treads . | . . . Legs 466 | 93 338 35 Wheels . | . . . Hover . | . . . Flight . | . . . Fastest Speed 120 | 120 120 190 Average Speed 152 | 120 156 198 Slowest Speed 260 | 120 190 260 Overloaded Moves . | . . . Propulsion Burnouts . | . . . Robots Hopped . | . . . Cave-ins Triggered . | . . . Exploration Rate (%) 29 | 6 63 18 Regions Visited 2 Branch Regions 1 Pre-discovered Areas . | . . . Known Exits Taken 1 | . 1 . Unknown Exits Taken 1 | 1 . . Scrap Searched . | . . . Spaces Dug 7 | . 7 . Terrain Destroyed 18 | . 18 . Melee 5 | . 5 . Projectile 2 | . 2 . AOE 11 | . 11 . Terrain Rammed . | . . . Walls Destroyed . | . . . Machines Disabled . | . . . Actions | -11 -10 -10 --------- Run | Yrd Mat Min Total 737 | 175 525 37 Wait 148 | 41 107 . Move 464 | 92 337 35 Hop . | . . . Pick Up 18 | 4 14 . Fast Attach 2 | 1 1 . Attach 3 | . 1 2 Detach . | . . . Swap 15 | 1 14 . Drop 14 | 3 11 . Fire 55 | 33 22 . Melee 18 | . 18 . Ram . | . . . Kick . | . . . Crush . | . . . Escape Stasis . | . . . Rewire . | . . . Trap . | . . . Miscellaneous . | . . . Route ------- -11/Scrapyard -10/Materials (discovered 5 exits: *Mat x3 / *Min x2) -10/Mines (discovered 1 exit: *Mat) History --------- Turn | Location | Event 32 | -11/Scrapyard | Discovered new exit (range 3) 233 | -11/Scrapyard | Entered Materials 351 | -10/Materials | Build established: Mutant 373 | -10/Materials | Discovered new exit (range 7) 578 | -10/Materials | Discovered new exit (range 9) 638 | -10/Materials | Identified exit to Materials 1004 | -10/Materials | Identified exit to Mines 1027 | -10/Materials | Entered Mines 1027 | -10/Mines | Assisted by bots powering up and referring to "LRC-V3" 1028 | -10/Mines | Assembled infested the area 1079 | -10/Mines | Core integrity fell below 50% 1082 | -10/Mines | Discovered exit to Materials (range 15) 1093 | -10/Mines | Core integrity fell below 20% 1097 | -10/Mines | Lost 3 allies 1097 | -10/Mines | Destroyed by D-53 Grenadier with Mini Grenade Launcher Last Messages --------------- 01073_ Lgt. Assault Rifle destroyed. 01073_ R-06 Scavenger destroyed. 01074_ U-05 Engineer lays Concrete. 01075_ The unstable cave ceiling collapses. 01075_ U-05 Engineer lays Concrete. 01076_ U-05 Engineer builds a Wall. 01077_ Aluminum Leg destroyed. 01078_ The unstable cave ceiling collapses. 01080_ D-53 Grenadier destroyed. 01080_ U-05 Engineer lays Concrete. 01081_ The unstable cave ceiling collapses. 01081_ Seismic Detector destroyed. 01082_ EXIT=FOUND: MATERIALS 01084_ The unstable cave ceiling collapses. 01084_ U-05 Engineer lays Concrete. 01085_ The unstable cave ceiling collapses. 01090_ U-05 Engineer lays Concrete. 01091_ The unstable cave ceiling collapses. 01092_ G-34 Mercenary destroyed. 01093_ The unstable cave ceiling collapses. Map ----- +----------------------------------------------------+ | ?????????????????????????????????????? | | ?????????????????????????????????????? | | ?????????????????????????????????????? | | ?????????????????????????????????????? | | ?????????????????????????????????????? | | ?????????????????????????????????????? | | ?????????????????????????????????????? | | ?????????????????????????????????????? | | ?????????????????????????????????????? | | ?????????????????????????????????????? | | ?????????????????????????????????????? | | ?????????????????????????????????????? | | ??????????????#??????????????????????? | | ?????????????# ??????????????????????? | | ????????????# ??????????????????????? | | ????????????# ???????????#????????### | | ????????????# ???????????# % ????# | | ???????????## ???????????# ????# | | ??????????## ??????????? ? ??# | | ???##???### #???????????## ## | | ???# ### #???????????# | | ???# < ##??????#### | | ???# ##????## ###### | | ???? #????# ?????# | | ???????? ####?? ##????# | | ???????????# @ ### " # ##???# | | ???????????### %[ ##%" ## # #???# | | ?????????????# # % ##### | | ?????????????# # =%= | | ????????????# # *% ##### | | ????????????# # # ###?? | | ????????????# d #?? | | ????????????# ### #?? | | ????????????# # # #????? | | ????????????# ## # #????? | | ????????????# "" #????? | | ????????????#### # ##????? | | ???????????????######## ####?????? | | ?????????????????????? ##????????? | | ?????????????????????# #?????????? | | ?????????????????????# ##?????????? | | ?????????????????????######??????????? | | ?????????????????????????????????????? | | ?????????????????????????????????????? | | | | | | | | | | | | | +----------------------------------------------------+ Best States ------------- Heat Dissipation 25 Energy Generation 10 Energy Capacity 250 Matter Stores 300 Matter Capacity 300 Sight Range 16 Robot Scan Range 14 Terrain Scan Range 16 Terrain Scan Density 10 Additional Mass Support 6 Evasion (%) 55 Item Schematics ----------------- None Robot Schematics ------------------ None Fabricated ------------ Nothing Alien Tech Used ----------------- None Achievements -------------- None Challenges ------------ None Game ------ Seed GaussCoolingBlaster Manual? 0 Play Time 00:17:07 Cumulative 177.6 hours Start 2024.10.04 @ 19:13:12 End 2024.10.05 @ 17:48:20 Sessions 2 Manual Loads 0 Difficulty Rogue Special Mode None Game No. 324 Rogue 320 Adventurer 0 Explorer 4 Win Type - Total 0 Types 0/0/0/0/0/0/0/0/0 Lore% 21 Gallery% 46 Achievement% 35 Wizard Run 0 Options --------- Layout 1 ASCII 0 Keyboard 1 Movement Arrows Keybinds 0 Fullscreen 1 Font 32/SmallcapsGlow Map View 130x35 Zoom Use 0% Tactical HUD 1 Map Filters NONE Filters NONE Steam 0 RUN: 3e48f99c-283a-4a41-86eb-e2bdb22941e7